[Event "*** Titled Tuesday Blitz"]
[Site "Chess.com"]
[Date "2020.04.21"]
[Round "3"]
[White "H3nriqueTV"]
[Black "FrankieJay"]
[Result "0-1"]
[WhiteElo "2145"]
[BlackElo "2361"]
[TimeControl "180+1"]
[EndTime "10:30:14 PDT"]
[Termination "FrankieJay won by resignation"]

1. e4 {[%clk 0:02:42]} 1... c5 {[%clk 0:02:57.8]} 2. Nf3 {[%clk 0:02:41.6]} 2...
Nc6 {[%clk 0:02:57.5]} 3. b3 {[%clk 0:02:40.6]} 3... e5 {[%clk 0:02:56]} 4. Bb2
{[%clk 0:02:39.2]} 4... d6 {[%clk 0:02:56.4]} 5. c3 {[%clk 0:02:38.2]} 5... Nf6
{[%clk 0:02:55.8]} 6. Bd3 {[%clk 0:02:38.2]} 6... Be7 {[%clk 0:02:54.9]} 7. Bc2
{[%clk 0:02:38.1]} 7... O-O {[%clk 0:02:51.7]} 8. O-O {[%clk 0:02:38.6]} 8... h6
{[%clk 0:02:50.6]} 9. d4 {[%clk 0:02:38]} 9... Qc7 {[%clk 0:02:49.6]} 10. h3
{[%clk 0:02:35.2]} 10... a6 {[%clk 0:02:38.5]} 11. a3 {[%clk 0:02:13.4]} 11...
b5 {[%clk 0:02:36.2]} 12. dxe5 {[%clk 0:02:08.6]} 12... dxe5 {[%clk 0:02:33.5]}
13. Qe2 {[%clk 0:02:07.6]} 13... Be6 {[%clk 0:02:24.4]} 14. Nbd2 {[%clk
0:02:07.4]} 14... Rad8 {[%clk 0:02:16.7]} 15. Rfd1 {[%clk 0:02:06.4]} 15... Rfe8
{[%clk 0:02:05.6]} 16. Nf1 {[%clk 0:02:06.2]} 16... Na5 {[%clk 0:01:48.6]} 17.
b4 {[%clk 0:01:36.9]} 17... Nc4 {[%clk 0:01:45.1]} 18. Bc1 {[%clk 0:01:36.1]}
18... a5 {[%clk 0:01:38.6]} 19. bxc5 {[%clk 0:01:15.6]} 19... Bxc5 {[%clk
0:01:38]} 20. Ng3 {[%clk 0:01:14.5]} 20... Qb6 {[%clk 0:01:22.7]} 21. Bd2 {[%clk
0:01:00.7]} 21... Nxd2 {[%clk 0:01:18.9]} 22. Rxd2 {[%clk 0:01:00.7]} 22... Bc4
{[%clk 0:01:16.3]} 23. Qe1 {[%clk 0:00:56.2]} 23... a4 {[%clk 0:00:51.7]} 24.
Nf5 {[%clk 0:00:54.5]} 24... Be6 {[%clk 0:00:43.9]} 25. Rad1 {[%clk 0:00:51.8]}
25... Rxd2 {[%clk 0:00:43.2]} 26. Rxd2 {[%clk 0:00:51.2]} 26... Bxf5 {[%clk
0:00:43.3]} 27. exf5 {[%clk 0:00:51.1]} 27... Bxa3 {[%clk 0:00:43.7]} 28. Re2
{[%clk 0:00:48.1]} 28... Bc5 {[%clk 0:00:33]} 29. Nxe5 {[%clk 0:00:46.6]} 29...
Qc7 {[%clk 0:00:24.9]} 30. Nf3 {[%clk 0:00:42.3]} 30... Rxe2 {[%clk 0:00:24.9]}
31. Qxe2 {[%clk 0:00:43]} 31... Bd6 {[%clk 0:00:25.4]} 32. Qxb5 {[%clk
0:00:40.9]} 32... Qxc3 {[%clk 0:00:21.7]} 33. Qxa4 {[%clk 0:00:40.8]} 33... Bc5
{[%clk 0:00:12.6]} 34. Qb3 {[%clk 0:00:38.5]} 34... Qxb3 {[%clk 0:00:10.9]} 35.
Bxb3 {[%clk 0:00:38.8]} 35... Ne4 {[%clk 0:00:11.8]} 36. Ne5 {[%clk 0:00:37.1]}
36... Bxf2+ {[%clk 0:00:11.5]} 37. Kh1 {[%clk 0:00:31.3]} 37... Ng3+ {[%clk
0:00:10.2]} 38. Kh2 {[%clk 0:00:31]} 38... Nxf5 {[%clk 0:00:10.2]} 39. Nxf7
{[%clk 0:00:29.3]} 39... Bg3+ {[%clk 0:00:09.6]} 40. Kg1 {[%clk 0:00:29.2]}
40... Kf8 {[%clk 0:00:09.9]} 41. Kf1 {[%clk 0:00:27.7]} 41... Bc7 {[%clk
0:00:07.3]} 42. g4 {[%clk 0:00:26.5]} 42... Nd4 {[%clk 0:00:06.3]} 43. Bc4
{[%clk 0:00:25.8]} 43... Ke7 {[%clk 0:00:06.6]} 44. g5 {[%clk 0:00:25.9]} 44...
h5 {[%clk 0:00:05.3]} 45. g6 {[%clk 0:00:24.5]} 45... Ne6 {[%clk 0:00:05.2]} 46.
Ng5 {[%clk 0:00:22.8]} 46... Nxg5 {[%clk 0:00:05.1]} 47. Be2 {[%clk 0:00:20.5]}
47... h4 {[%clk 0:00:05]} 48. Bg4 {[%clk 0:00:20]} 48... Kf6 {[%clk 0:00:05.3]}
49. Bh5 {[%clk 0:00:18.7]} 49... Ne4 {[%clk 0:00:05.1]} 50. Ke1 {[%clk
0:00:16.8]} 50... Ng3 {[%clk 0:00:06]} 51. Bg4 {[%clk 0:00:17.2]} 51... Kxg6
{[%clk 0:00:06.3]} 52. Kf2 {[%clk 0:00:17.6]} 52... Kg5 {[%clk 0:00:06.9]} 53.
Ke3 {[%clk 0:00:18]} 53... Nf5+ {[%clk 0:00:07]} 54. Ke4 {[%clk 0:00:16.9]}
54... Nh6 {[%clk 0:00:07.2]} 55. Bc8 {[%clk 0:00:16.4]} 55... Bg3 {[%clk
0:00:07.6]} 56. Kf3 {[%clk 0:00:16.6]} 56... Kf6 {[%clk 0:00:08]} 57. Ke4 {[%clk
0:00:16.5]} 57... g5 {[%clk 0:00:08.4]} 58. Kf3 {[%clk 0:00:17]} 58... Ke5
{[%clk 0:00:08.7]} 59. Ke2 {[%clk 0:00:16.5]} 59... Bf4 {[%clk 0:00:08.9]} 60.
Kf3 {[%clk 0:00:16.8]} 60... Nf5 {[%clk 0:00:08.2]} 61. Kg4 {[%clk 0:00:16.8]}
61... Ne3+ {[%clk 0:00:08.7]} 62. Kh5 {[%clk 0:00:17]} 62... Ke4 {[%clk
0:00:08.1]} 63. Kg6 {[%clk 0:00:16.1]} 63... Kd3 {[%clk 0:00:08.2]} 64. Kh5
{[%clk 0:00:16.6]} 64... Ke2 {[%clk 0:00:08.5]} 65. Kg6 {[%clk 0:00:16.8]} 65...
Kf2 {[%clk 0:00:09]} 66. Kh5 {[%clk 0:00:17.3]} 66... Kg3 {[%clk 0:00:09.4]} 67.
Bd7 {[%clk 0:00:15.5]} 67... Ng2 {[%clk 0:00:08.6]} 68. Be6 {[%clk 0:00:13.8]}
68... Ne1 {[%clk 0:00:08.9]} 69. Bd7 {[%clk 0:00:12.3]} 69... Nf3 {[%clk
0:00:09.2]} 70. Kg6 {[%clk 0:00:11.7]} 70... Ng1 {[%clk 0:00:09.7]} 71. Kf5
{[%clk 0:00:11.5]} 71... Nxh3 {[%clk 0:00:10.6]} 72. Ke4 {[%clk 0:00:12.4]}
72... Nf2+ {[%clk 0:00:11]} 73. Kd4 {[%clk 0:00:11.6]} 73... h3 {[%clk
0:00:11.9]} 0-1

[Event "*** Titled Tuesday Blitz"]
[Site "Chess.com"]
[Date "2020.04.21"]
[Round "3"]
[White "Hikaru"]
[Black "Gordima"]
[Result "1/2-1/2"]
[WhiteElo "3226"]
[BlackElo "2717"]
[TimeControl "180+1"]
[EndTime "10:30:15 PDT"]
[Termination "Game drawn by agreement"]

1. Nf3 {[%clk 0:03:00.9]} 1... d5 {[%clk 0:02:59.8]} 2. b3 {[%clk 0:02:59.9]}
2... Bf5 {[%clk 0:02:59.2]} 3. Bb2 {[%clk 0:02:59.6]} 3... e6 {[%clk 0:02:58.6]}
4. e3 {[%clk 0:02:59.7]} 4... Nf6 {[%clk 0:02:57.5]} 5. Nh4 {[%clk 0:02:59.4]}
5... Bg6 {[%clk 0:02:53.4]} 6. Nxg6 {[%clk 0:02:59.1]} 6... hxg6 {[%clk
0:02:54.3]} 7. g3 {[%clk 0:02:59.7]} 7... c6 {[%clk 0:02:50.6]} 8. Bg2 {[%clk
0:02:59.8]} 8... Nbd7 {[%clk 0:02:50.3]} 9. d3 {[%clk 0:03:00.3]} 9... Bd6
{[%clk 0:02:49.9]} 10. Nd2 {[%clk 0:03:00.7]} 10... a5 {[%clk 0:02:50]} 11. a3
{[%clk 0:03:00.5]} 11... Qc7 {[%clk 0:02:45]} 12. Qe2 {[%clk 0:02:59.2]} 12...
Be5 {[%clk 0:02:39.6]} 13. c3 {[%clk 0:02:56.8]} 13... g5 {[%clk 0:02:34.5]} 14.
h3 {[%clk 0:02:50.4]} 14... Bd6 {[%clk 0:02:22.5]} 15. c4 {[%clk 0:02:49.4]}
15... Be5 {[%clk 0:02:17.4]} 16. d4 {[%clk 0:02:48.6]} 16... Bd6 {[%clk
0:02:17.4]} 17. O-O-O {[%clk 0:02:44.4]} 17... O-O {[%clk 0:02:05.1]} 18. Kb1
{[%clk 0:02:44.3]} 18... c5 {[%clk 0:01:59.7]} 19. cxd5 {[%clk 0:02:44.2]} 19...
exd5 {[%clk 0:01:57.4]} 20. dxc5 {[%clk 0:02:34.7]} 20... Be5 {[%clk 0:01:57.4]}
21. Nf3 {[%clk 0:02:19.3]} 21... Bxb2 {[%clk 0:01:49.1]} 22. Qxb2 {[%clk
0:02:20.2]} 22... Nxc5 {[%clk 0:01:34.6]} 23. Nxg5 {[%clk 0:02:11.8]} 23... Rfd8
{[%clk 0:01:09.1]} 24. Rd4 {[%clk 0:01:46.9]} 24... Ra6 {[%clk 0:01:06]} 25. Rc1
{[%clk 0:01:46.4]} 25... Rc6 {[%clk 0:01:05]} 26. Ka2 {[%clk 0:01:17.9]} 26...
a4 {[%clk 0:00:55.1]} 27. bxa4 {[%clk 0:01:12.2]} 27... Nxa4 {[%clk 0:00:51.2]}
28. Rxc6 {[%clk 0:01:10.9]} 28... Qxc6 {[%clk 0:00:51]} 29. Qb3 {[%clk
0:01:11.8]} 29... Nc3+ {[%clk 0:00:49.9]} 30. Kb2 {[%clk 0:01:10.8]} 30... Rc8
{[%clk 0:00:47.9]} 31. Bf3 {[%clk 0:01:09.8]} 31... Nce4 {[%clk 0:00:39.4]} 32.
Rd1 {[%clk 0:00:40.5]} 32... Nxg5 {[%clk 0:00:37.7]} 33. Bxd5 {[%clk 0:00:40.5]}
33... Nxd5 {[%clk 0:00:35.6]} 34. Qxd5 {[%clk 0:00:41.4]} 34... Qc2+ {[%clk
0:00:32.6]} 35. Ka1 {[%clk 0:00:41.8]} 35... Ne6 {[%clk 0:00:28.4]} 36. Qd2
{[%clk 0:00:41.8]} 36... Qa4 {[%clk 0:00:25.7]} 37. Kb2 {[%clk 0:00:40.8]} 37...
Rd8 {[%clk 0:00:23.7]} 38. Qxd8+ {[%clk 0:00:40.7]} 38... Nxd8 {[%clk
0:00:24.6]} 39. Rxd8+ {[%clk 0:00:40.9]} 39... Kh7 {[%clk 0:00:25.2]} 40. Rd4
{[%clk 0:00:39.5]} 40... Qb5+ {[%clk 0:00:23.8]} 41. Kc3 {[%clk 0:00:39.8]}
41... Qc6+ {[%clk 0:00:21.3]} 42. Kb3 {[%clk 0:00:37.1]} 42... Qg2 {[%clk
0:00:19.1]} 43. Rf4 {[%clk 0:00:36.7]} 43... f6 {[%clk 0:00:11.6]} 44. h4 {[%clk
0:00:37.3]} 44... Qd5+ {[%clk 0:00:11.3]} 45. Kc3 {[%clk 0:00:34.9]} 45... Qa2
{[%clk 0:00:10.3]} 46. a4 {[%clk 0:00:33.6]} 46... Kg6 {[%clk 0:00:07.3]} 47. g4
{[%clk 0:00:30.2]} 47... Kf7 {[%clk 0:00:06.1]} 48. h5 {[%clk 0:00:29.6]} 48...
Ke6 {[%clk 0:00:05.7]} 49. Kd3 {[%clk 0:00:29.6]} 49... Qb2 {[%clk 0:00:04.2]}
50. Ke4 {[%clk 0:00:22.5]} 50... Qc2+ {[%clk 0:00:02.5]} 51. Kf3 {[%clk
0:00:22.7]} 51... Qd1+ {[%clk 0:00:03.1]} 52. Kg2 {[%clk 0:00:23]} 52... Qb3
{[%clk 0:00:03.4]} 53. Re4+ {[%clk 0:00:22.7]} 53... Kf7 {[%clk 0:00:03.5]} 54.
Rd4 {[%clk 0:00:23.6]} 54... Qc2 {[%clk 0:00:03.4]} 55. Rf4 {[%clk 0:00:24]}
55... Kg8 {[%clk 0:00:03.5]} 56. Kg3 {[%clk 0:00:24.4]} 56... Qc6 {[%clk
0:00:04]} 57. Kh2 {[%clk 0:00:23.9]} 57... Qd6 {[%clk 0:00:04.3]} 58. Kg2 {[%clk
0:00:24.1]} 58... Kh7 {[%clk 0:00:04.8]} 59. Rd4 {[%clk 0:00:23.6]} 59... Qc6+
{[%clk 0:00:04.6]} 60. Kg1 {[%clk 0:00:23.5]} 60... Kh6 {[%clk 0:00:05.2]} 61.
Rf4 {[%clk 0:00:23.9]} 61... Kg5 {[%clk 0:00:05.4]} 62. Kh2 {[%clk 0:00:24.1]}
62... Kh4 {[%clk 0:00:05.4]} 63. Kg1 {[%clk 0:00:16.6]} 63... Qc1+ {[%clk
0:00:05.4]} 64. Kg2 {[%clk 0:00:16.8]} 64... Qc6+ {[%clk 0:00:06]} 65. Kh2
{[%clk 0:00:16.9]} 65... Qc1 {[%clk 0:00:05.3]} 66. Kg2 {[%clk 0:00:16.8]} 66...
Qd1 {[%clk 0:00:05]} 67. Rd4 {[%clk 0:00:16]} 67... Qb3 {[%clk 0:00:04.7]} 68.
Rf4 {[%clk 0:00:15.5]} 68... Qd3 {[%clk 0:00:04.4]} 69. Rd4 {[%clk 0:00:15.3]}
69... Qa6 {[%clk 0:00:04.4]} 70. Rf4 {[%clk 0:00:15.6]} 70... Qc6+ {[%clk
0:00:04.7]} 71. Kh2 {[%clk 0:00:16.1]} 71... Kg5 {[%clk 0:00:04.8]} 72. Kg3
{[%clk 0:00:15.6]} 72... Qd6 {[%clk 0:00:04.7]} 73. Kh3 {[%clk 0:00:14.9]} 73...
Kh6 {[%clk 0:00:04.2]} 74. Kg3 {[%clk 0:00:14.4]} 74... Qc6 {[%clk 0:00:04.5]}
75. Kh2 {[%clk 0:00:14.5]} 75... Qd6 {[%clk 0:00:04.7]} 76. Kg2 {[%clk
0:00:13.3]} 1/2-1/2

[Event "*** Titled Tuesday Blitz"]
[Site "Chess.com"]
[Date "2020.04.21"]
[Round "3"]
[White "ShahMatKanal"]
[Black "Pultis"]
[Result "0-1"]
[WhiteElo "2507"]
[BlackElo "2739"]
[TimeControl "180+1"]
[EndTime "10:30:16 PDT"]
[Termination "Pultis won by resignation"]

1. d4 {[%clk 0:03:00.9]} 1... Nf6 {[%clk 0:02:59.7]} 2. c4 {[%clk 0:02:54]} 2...
g6 {[%clk 0:02:59.6]} 3. Nc3 {[%clk 0:02:52.9]} 3... d5 {[%clk 0:03:00]} 4. cxd5
{[%clk 0:02:51]} 4... Nxd5 {[%clk 0:03:00.9]} 5. Bd2 {[%clk 0:02:49.2]} 5... Bg7
{[%clk 0:02:56.3]} 6. e4 {[%clk 0:02:48.1]} 6... Nxc3 {[%clk 0:02:53.1]} 7. Bxc3
{[%clk 0:02:48.4]} 7... O-O {[%clk 0:02:53]} 8. Be2 {[%clk 0:02:42]} 8... c5
{[%clk 0:02:45.8]} 9. d5 {[%clk 0:02:41.3]} 9... Bxc3+ {[%clk 0:02:46.4]} 10.
bxc3 {[%clk 0:02:42.1]} 10... e6 {[%clk 0:02:45.7]} 11. Nf3 {[%clk 0:02:41.8]}
11... exd5 {[%clk 0:02:40.4]} 12. exd5 {[%clk 0:02:42.7]} 12... Nd7 {[%clk
0:02:39.3]} 13. O-O {[%clk 0:02:41.5]} 13... Nf6 {[%clk 0:02:38.9]} 14. c4
{[%clk 0:02:36.6]} 14... Bg4 {[%clk 0:02:36.3]} 15. Qb3 {[%clk 0:02:30.3]} 15...
b6 {[%clk 0:02:27.6]} 16. a4 {[%clk 0:02:27.8]} 16... Ne8 {[%clk 0:02:26.7]} 17.
a5 {[%clk 0:02:20.6]} 17... Rb8 {[%clk 0:02:24.9]} 18. axb6 {[%clk 0:02:18.6]}
18... axb6 {[%clk 0:02:25.8]} 19. h3 {[%clk 0:02:15.6]} 19... Bxf3 {[%clk
0:02:25.6]} 20. Bxf3 {[%clk 0:02:15.4]} 20... Nd6 {[%clk 0:02:26.2]} 21. Ra7
{[%clk 0:02:11.5]} 21... Qf6 {[%clk 0:02:24.9]} 22. Ra6 {[%clk 0:01:51.8]} 22...
Qd4 {[%clk 0:01:36.5]} 23. Rxb6 {[%clk 0:01:46]} 23... Rxb6 {[%clk 0:01:35.6]}
24. Qxb6 {[%clk 0:01:46.9]} 24... Nxc4 {[%clk 0:01:36]} 25. Qc7 {[%clk
0:01:34.5]} 25... Nd2 {[%clk 0:01:30.5]} 26. Rc1 {[%clk 0:01:28]} 26... Nxf3+
{[%clk 0:01:23.2]} 27. gxf3 {[%clk 0:01:28]} 27... Qxd5 {[%clk 0:01:23.3]} 28.
Rxc5 {[%clk 0:01:10.3]} 28... Qxf3 {[%clk 0:01:21.8]} 29. Qg3 {[%clk 0:01:09.6]}
29... Qd1+ {[%clk 0:01:17.2]} 30. Kh2 {[%clk 0:01:04.6]} 30... Ra8 {[%clk
0:01:12.8]} 31. Qc3 {[%clk 0:00:56.9]} 31... Qd6+ {[%clk 0:01:09.6]} 32. Qe5
{[%clk 0:00:54.4]} 32... Qd2 {[%clk 0:01:05.6]} 33. Qf6 {[%clk 0:00:46.9]} 33...
Qd7 {[%clk 0:00:54.2]} 34. Re5 {[%clk 0:00:40.4]} 34... Ra3 {[%clk 0:00:39.9]}
35. Qh4 {[%clk 0:00:26]} 35... Rf3 {[%clk 0:00:23.5]} 36. Rg5 {[%clk 0:00:15.7]}
36... Qd2 {[%clk 0:00:19.3]} 37. Rg2 {[%clk 0:00:14.5]} 37... Kg7 {[%clk
0:00:17.2]} 38. Kh1 {[%clk 0:00:03.6]} 38... h5 {[%clk 0:00:16.5]} 39. Kh2
{[%clk 0:00:03.8]} 39... Rf4 {[%clk 0:00:15.1]} 40. Qg3 {[%clk 0:00:03.5]} 40...
h4 {[%clk 0:00:14]} 41. Qg5 {[%clk 0:00:03.2]} 41... Qd4 {[%clk 0:00:14.1]} 42.
Kh1 {[%clk 0:00:01.3]} 42... Rxf2 {[%clk 0:00:09.7]} 43. Rxf2 {[%clk 0:00:01.7]}
43... Qxf2 {[%clk 0:00:10.4]} 44. Qe5+ {[%clk 0:00:02]} 44... Kh7 {[%clk
0:00:09.9]} 45. Qd6 {[%clk 0:00:01.6]} 45... Qf3+ {[%clk 0:00:06.1]} 46. Kh2
{[%clk 0:00:02]} 46... Qf2+ {[%clk 0:00:06.3]} 47. Kh1 {[%clk 0:00:02.3]} 47...
Kh6 {[%clk 0:00:06.2]} 48. Qf8+ {[%clk 0:00:01.8]} 48... Kg5 {[%clk 0:00:06.4]}
49. Qe7+ {[%clk 0:00:02.3]} 49... Qf6 {[%clk 0:00:06.5]} 50. Qe3+ {[%clk
0:00:02.5]} 50... Qf4 {[%clk 0:00:06.2]} 51. Qc5+ {[%clk 0:00:02.8]} 51... Kh6
{[%clk 0:00:03.8]} 52. Qf8+ {[%clk 0:00:02.7]} 52... Kh7 {[%clk 0:00:03.2]} 53.
Qa3 {[%clk 0:00:02.2]} 53... Qf1+ {[%clk 0:00:03.3]} 54. Kh2 {[%clk 0:00:02.6]}
54... Qf2+ {[%clk 0:00:04.2]} 55. Kh1 {[%clk 0:00:02.9]} 55... Qg3 {[%clk
0:00:05.1]} 56. Qxg3 {[%clk 0:00:02.1]} 56... hxg3 {[%clk 0:00:06]} 57. Kg2
{[%clk 0:00:02.9]} 57... Kh6 {[%clk 0:00:06.3]} 58. Kxg3 {[%clk 0:00:03.8]}
58... Kg5 {[%clk 0:00:05.8]} 59. Kf3 {[%clk 0:00:04.1]} 59... Kh4 {[%clk
0:00:05.3]} 60. Kg2 {[%clk 0:00:03.9]} 60... g5 {[%clk 0:00:05.1]} 61. Kh2
{[%clk 0:00:03.7]} 61... f5 {[%clk 0:00:03.9]} 62. Kg2 {[%clk 0:00:04.1]} 62...
f4 {[%clk 0:00:04.5]} 63. Kh2 {[%clk 0:00:03.4]} 63... f3 {[%clk 0:00:05.1]} 64.
Kh1 {[%clk 0:00:02.9]} 64... Kxh3 {[%clk 0:00:04.2]} 65. Kg1 {[%clk 0:00:03.5]}
65... Kg3 {[%clk 0:00:04.9]} 66. Kh1 {[%clk 0:00:02.8]} 66... Kf2 {[%clk
0:00:05.2]} 67. Kh2 {[%clk 0:00:02.9]} 67... g4 {[%clk 0:00:04.9]} 68. Kh1
{[%clk 0:00:03.4]} 68... Ke1 {[%clk 0:00:05.3]} 0-1

[Event "*** Titled Tuesday Blitz"]
[Site "Chess.com"]
[Date "2020.04.21"]
[Round "3"]
[White "Donseng"]
[Black "Xeniya2005"]
[Result "1-0"]
[WhiteElo "2528"]
[BlackElo "2251"]
[TimeControl "180+1"]
[EndTime "10:30:20 PDT"]
[Termination "Donseng won on time"]

1. e4 {[%clk 0:03:00.9]} 1... c5 {[%clk 0:02:59.7]} 2. Nf3 {[%clk 0:03:00.3]}
2... Nc6 {[%clk 0:02:59.8]} 3. d4 {[%clk 0:03:00.8]} 3... cxd4 {[%clk
0:03:00.7]} 4. Nxd4 {[%clk 0:03:01.7]} 4... Nf6 {[%clk 0:03:01.3]} 5. Nc3 {[%clk
0:03:02]} 5... e6 {[%clk 0:03:01.7]} 6. Ndb5 {[%clk 0:03:01.5]} 6... Bb4 {[%clk
0:03:01.1]} 7. a3 {[%clk 0:03:01.5]} 7... Bxc3+ {[%clk 0:03:01.3]} 8. Nxc3
{[%clk 0:03:02.4]} 8... d5 {[%clk 0:03:02]} 9. exd5 {[%clk 0:03:02.5]} 9... exd5
{[%clk 0:03:02.9]} 10. Bd3 {[%clk 0:03:02.9]} 10... O-O {[%clk 0:03:02.6]} 11.
O-O {[%clk 0:03:03]} 11... Bg4 {[%clk 0:03:02.2]} 12. Qd2 {[%clk 0:02:57.2]}
12... Re8 {[%clk 0:02:47.3]} 13. Qf4 {[%clk 0:02:55.3]} 13... Bh5 {[%clk
0:02:41.3]} 14. Qg3 {[%clk 0:02:46.8]} 14... Bg6 {[%clk 0:02:36.8]} 15. Bg5
{[%clk 0:02:46.2]} 15... d4 {[%clk 0:02:30.6]} 16. Ne2 {[%clk 0:02:36.9]} 16...
Bxd3 {[%clk 0:02:11.4]} 17. Qxd3 {[%clk 0:02:36.3]} 17... Qd6 {[%clk 0:02:11.6]}
18. Rad1 {[%clk 0:02:32]} 18... Rad8 {[%clk 0:02:10.2]} 19. Rfe1 {[%clk
0:02:27.3]} 19... h6 {[%clk 0:02:00.3]} 20. Bf4 {[%clk 0:02:24.9]} 20... Qd5
{[%clk 0:01:58.5]} 21. Ng3 {[%clk 0:02:24.2]} 21... Nh5 {[%clk 0:01:52]} 22.
Nxh5 {[%clk 0:02:16.9]} 22... Qxh5 {[%clk 0:01:52.9]} 23. h3 {[%clk 0:02:16]}
23... Qc5 {[%clk 0:01:47.4]} 24. Re4 {[%clk 0:01:54.7]} 24... Rxe4 {[%clk
0:01:38.3]} 25. Qxe4 {[%clk 0:01:54.8]} 25... Qb5 {[%clk 0:01:38.2]} 26. Rd3
{[%clk 0:01:38]} 26... Qd5 {[%clk 0:01:27.1]} 27. Qxd5 {[%clk 0:01:32.3]} 27...
Rxd5 {[%clk 0:01:28]} 28. c4 {[%clk 0:01:32.4]} 28... Rf5 {[%clk 0:01:21.1]} 29.
Bg3 {[%clk 0:01:30.9]} 29... b5 {[%clk 0:01:19.9]} 30. cxb5 {[%clk 0:01:28.3]}
30... Rxb5 {[%clk 0:01:20.8]} 31. b4 {[%clk 0:01:26.1]} 31... a5 {[%clk
0:01:19.9]} 32. bxa5 {[%clk 0:01:24.6]} 32... Rxa5 {[%clk 0:01:20.3]} 33. Kf1
{[%clk 0:01:23.1]} 33... f6 {[%clk 0:01:16.5]} 34. Ke2 {[%clk 0:01:22.5]} 34...
Kf7 {[%clk 0:01:16]} 35. Rb3 {[%clk 0:01:21.6]} 35... Ke6 {[%clk 0:01:10.9]} 36.
Kd3 {[%clk 0:01:08.4]} 36... Kd5 {[%clk 0:01:09]} 37. f4 {[%clk 0:01:03]} 37...
f5 {[%clk 0:00:56.8]} 38. Be1 {[%clk 0:01:02.8]} 38... Ra4 {[%clk 0:00:51.6]}
39. Rb5+ {[%clk 0:01:02]} 39... Ke6 {[%clk 0:00:50.8]} 40. Bb4 {[%clk
0:01:01.7]} 40... g5 {[%clk 0:00:46.2]} 41. g4 {[%clk 0:00:38.8]} 41... fxg4
{[%clk 0:00:26.1]} 42. f5+ {[%clk 0:00:38.4]} 42... Kf6 {[%clk 0:00:20.3]} 43.
hxg4 {[%clk 0:00:25.9]} 43... Ne5+ {[%clk 0:00:19.7]} 44. Ke4 {[%clk 0:00:25.1]}
44... Nxg4 {[%clk 0:00:19.2]} 45. Rb6+ {[%clk 0:00:25.5]} 45... Kf7 {[%clk
0:00:18.8]} 46. Rb7+ {[%clk 0:00:22.2]} 46... Kf6 {[%clk 0:00:18.6]} 47. Be7+
{[%clk 0:00:22]} 47... Kf7 {[%clk 0:00:15.7]} 48. Bxg5+ {[%clk 0:00:22.2]} 48...
Kg8 {[%clk 0:00:14.3]} 49. Bc1 {[%clk 0:00:16.9]} 49... Ra5 {[%clk 0:00:10.6]}
50. Kxd4 {[%clk 0:00:08.9]} 50... Rxf5 {[%clk 0:00:09.9]} 51. a4 {[%clk
0:00:09]} 51... h5 {[%clk 0:00:09.5]} 52. Rb5 {[%clk 0:00:08.3]} 52... Rf1
{[%clk 0:00:04.2]} 53. Rxh5 {[%clk 0:00:06.7]} 53... Rxc1 {[%clk 0:00:03.6]} 54.
Rg5+ {[%clk 0:00:06.9]} 54... Kf7 {[%clk 0:00:03.7]} 55. Rxg4 {[%clk 0:00:07.8]}
55... Ra1 {[%clk 0:00:02.4]} 56. Kc5 {[%clk 0:00:07.4]} 56... Ke6 {[%clk
0:00:02.7]} 57. Rd4 {[%clk 0:00:07.2]} 57... Ke7 {[%clk 0:00:02.3]} 58. Kb6
{[%clk 0:00:06.3]} 58... Ke6 {[%clk 0:00:01.4]} 59. a5 {[%clk 0:00:06.2]} 59...
Ke5 {[%clk 0:00:01.7]} 60. Rd8 {[%clk 0:00:05.8]} 60... Ke6 {[%clk 0:00:02]} 61.
a6 {[%clk 0:00:05.5]} 61... Ke7 {[%clk 0:00:01.9]} 62. Rd5 {[%clk 0:00:05.2]}
1-0